[Event "7th Iberoamerican-ch 2019"]
[Site "Linares"]
[Date "2019.08.17"]
[Round "8.25"]
[White "Moral Garcia, Serafin"]
[Black "Sos Andreu, Eric"]
[Result "1-0"]
[ECO "B14"]
[WhiteElo "2281"]
[BlackElo "2354"]
[Annotator "NA"]
[PlyCount "119"]
[EventDate "2019.08.10"]
[EventType "swiss"]
[EventCountry "ESP"]
[SourceTitle "playchess.com"]
[Source "ChessBase"]
[SourceQuality "1"]
[TimeControl "5400+30"]

1. e4 {[%emt 0:00:00]} c6 {[%emt 0:01:11]} 2. d4 {[%emt 0:00:07]} d5 {[%emt 0:00:07]} 3. exd5 {[%emt 0:00:20]} cxd5 {[%emt 0:00:07]} 4. c4 {[%emt 0:00:24]} Nf6 {[%emt 0:00:12]} 5. Nc3 {[%emt 0:00:27]} g6 {[%emt 0:00:08]} 6. cxd5 {[%emt 0:01:07]} Bg7 {[%emt 0:05:54]} 7. Bb5+ {[%emt 0:02:31]} Nbd7 {[%emt 0:00:06]} 8. d6 {[%emt 0:01:29]} exd6 {[%emt 0:00:05]} 9. Qe2+ {[%emt 0:01:09]} Qe7 {[%emt 0:00:20]} 10. Bf4 {[%emt 0:01:17]} Qxe2+ {[%emt 0:02:27]} 11. Bxe2 {[%emt 0:01:58]} Ke7 {[%emt 0:03:02]} 12. Bf3 {[%emt 0:01:16]} Nb6 {[%emt 0:01:34]} 13. Nge2 {[%emt 0:02:19]} h6 {[%emt 0:08:21]} 14. h4 d5 {[%emt 0:02:02]} 15. a4 {[%emt 0:08:59]} Be6 {[%emt 0:01:04]} 16. a5 {[%emt 0:05:03]} Nc4 {[%emt 0:03:22]} 17. b3 {[%emt 0:02:13]} Nd6 {[%emt 0:00:07]} 18. Be5 {[%emt 0:02:28]} Nde4 {[%emt 0:08:11]} 19. Bxe4 {[%emt 0:04:30]} dxe4 {[%emt 0:00:11]} 20. d5 {[%emt 0:00:18]} Bf5 {[%emt 0:02:50]} 21. Ra4 {[%emt 0:06:36]} Rhe8 {[%emt 0:06:57]} 22. Rb4 {[%emt 0:05:11]} Kf8 {[%emt 0:04:11]} 23. Bd6+ {[%emt 0:01:32]} Kg8 {[%emt 0:00:05]} 24. Rxb7 {[%emt 0:01:45]} e3 {[%emt 0:07:57]} 25. f3 {[%emt 0:09:19]} Bd3 {[%emt 0:07:10]} 26. Bc5 {[%emt 0:00:47]} Rac8 {[%emt 0:09:07]} 27. b4 {[%emt 0:00:35]} Bxe2 {[%emt 0:05:04]} 28. Kxe2 {[%emt 0:00:25]} Nh5 {[%emt 0:00:24]} 29. Ne4 {[%emt 0:04:33]} f5 {[%emt 0:02:19]} 30. Nd6 {[%emt 0:08:12]} Nf4+ {[%emt 0:07:26]} 31. Kd1 {[%emt 0:00:29]} Nxd5 {[%emt 0:01:35]} 32. Nxc8 {[%emt 0:02:08]} e2+ {[%emt 0:00:58]} 33. Kd2 {[%emt 0:00:52]} Bc3+ {[%emt 0:01:54]} 34. Kd3 {[%emt 0:00:25]} e1=Q {[%emt 0:00:54]} 35. Rxe1 {[%emt 0:00:04]} Bxe1 {[%emt 0:00:18]} 36. Ne7+ {[%emt 0:00:58]} Nxe7 {[%emt 0:00:05]} 37. Rxe7 {[%emt 0:00:04]} Rxe7 38. Bxe7 {[%emt 0:00:11]} Kf7 {[%emt 0:01:10]} 39. Bc5 {[%emt 0:00:04]} Ke6 {[%emt 0:00:08]} 40. Kc4 {[%emt 0:00:51]} a6 {[%emt 0:00:19]} 41. b5 axb5+ {[%emt 0:00:54]} 42. Kxb5 {[%emt 0:03:26]} Kd7 {[%emt 0:00:46]} 43. Kb6 {[%emt 0:00:11]} Kc8 {[%emt 0:00:46]} 44. a6 {[%emt 0:01:36]} Kb8 {[%emt 0:00:08]} 45. h5 {[%emt 0:00:11]} gxh5 {[%emt 0:00:10]} 46. Kc6 {[%emt 0:00:04]} h4 {[%emt 0:00:51]} 47. Kd6 {[%emt 0:00:18]} Bg3+ {[%emt 0:00:09]} 48. Ke6 {[%emt 0:00:05]} f4 {[%emt 0:00:04]} 49. Kf5 {[%emt 0:00:25]} Kc7 {[%emt 0:00:03]} 50. Kg6 {[%emt 0:00:30]} Kc6 {[%emt 0:00:10]} 51. Kxh6 {[%emt 0:00:50]} Kc7 {[%emt 0:00:27]} 52. Kg5 {[%emt 0:00:21]} Kc6 {[%emt 0:00:09]} 53. Kg4 {[%emt 0:00:22]} Kxc5 {[%emt 0:00:05]} 54. a7 {[%emt 0:00:04]} Kd4 {[%emt 0:00:05]} 55. a8=Q {[%emt 0:00:15]} Ke3 {[%emt 0:00:07]} 56. Qa2 {[%emt 0:00:17]} Kd3 57. Qb2 {[%emt 0:00:10]} Ke3 {[%emt 0:00:26]} 58. Qc2 {[%emt 0:00:24]} Be1 {[%emt 0:00:07]} 59. Qe4+ {[%emt 0:00:53]} Kf2 60. Kxf4 1-0

[Event "7th Iberoamerican-ch 2019"]
[Site "Linares"]
[Date "2019.08.17"]
[Round "8.26"]
[White "Perez Garcia, Alejandro"]
[Black "Garcia, Jhoel"]
[Result "0-1"]
[ECO "A05"]
[WhiteElo "2347"]
[BlackElo "2290"]
[Annotator "NA"]
[PlyCount "74"]
[EventDate "2019.08.10"]
[EventType "swiss"]
[EventCountry "ESP"]
[SourceTitle "playchess.com"]
[Source "ChessBase"]
[SourceQuality "1"]
[TimeControl "5400+30"]

1. Nf3 {[%emt 0:00:00]} Nf6 {[%emt 0:02:57]} 2. c4 {[%emt 0:00:00]} g6 {[%emt 0:02:20]} 3. b3 {[%emt 0:00:07]} Bg7 {[%emt 0:00:20]} 4. Bb2 {[%emt 0:00:10]} d6 {[%emt 0:00:15]} 5. d4 {[%emt 0:01:39]} O-O {[%emt 0:03:59]} 6. g3 {[%emt 0:00:38]} e5 {[%emt 0:01:20]} 7. dxe5 {[%emt 0:01:20]} Nfd7 {[%emt 0:01:27]} 8. Nc3 {[%emt 0:08:15]} dxe5 {[%emt 0:00:06]} 9. Bg2 {[%emt 0:07:52]} Nc6 {[%emt 0:00:49]} 10. O-O {[%emt 0:10:57]} e4 {[%emt 0:09:56]} 11. Ne1 {[%emt 0:04:02]} Nc5 {[%emt 0:07:36]} 12. Nc2 {[%emt 0:06:40]} Bg4 {[%emt 0:02:23]} 13. b4 {[%emt 0:19:53]} Nd3 {[%emt 0:02:01]} 14. Qb1 {[%emt 0:09:46]} Nxb2 {[%emt 0:04:31]} 15. Qxb2 {[%emt 0:00:22]} Bxe2 {[%emt 0:05:26]} 16. Rfe1 {[%emt 0:08:29]} Qd3 {[%emt 0:03:22]} 17. Bxe4 {[%emt 0:09:27]} Qxc3 {[%emt 0:00:35]} 18. Qxc3 {[%emt 0:00:30]} Bxc3 {[%emt 0:00:05]} 19. Rxe2 {[%emt 0:00:20]} Bxa1 {[%emt 0:00:07]} 20. Bxc6 {[%emt 0:00:52]} bxc6 {[%emt 0:05:25]} 21. Nxa1 {[%emt 0:00:04]} Rfe8 {[%emt 0:03:03]} 22. Kf1 {[%emt 0:01:54]} a5 {[%emt 0:04:11]} 23. Rxe8+ {[%emt 0:05:03]} Rxe8 {[%emt 0:00:05]} 24. bxa5 {[%emt 0:00:03]} Re4 {[%emt 0:00:05]} 25. Nb3 {[%emt 0:00:26]} Rxc4 {[%emt 0:00:06]} 26. Ke2 {[%emt 0:01:28]} Ra4 {[%emt 0:00:23]} 27. Kd3 {[%emt 0:00:53]} c5 {[%emt 0:00:35]} 28. Kc3 {[%emt 0:00:29]} Rxa2 {[%emt 0:02:21]} 29. Kc4 {[%emt 0:00:28]} Ra3 {[%emt 0:00:10]} 30. f4 {[%emt 0:01:54]} h5 {[%emt 0:00:14]} 31. h3 {[%emt 0:00:20]} Kg7 {[%emt 0:00:08]} 32. g4 {[%emt 0:00:33]} h4 {[%emt 0:00:04]} 33. g5 {[%emt 0:00:16]} Kg8 {[%emt 0:00:22]} 34. Nxc5 {[%emt 0:01:02]} Rxa5 {[%emt 0:00:09]} 35. Kd5 {[%emt 0:00:27]} Ra3 {[%emt 0:00:12]} 36. Ke5 {[%emt 0:00:46]} Rxh3 {[%emt 0:00:27]} 37. Nd7 {[%emt 0:00:12]} Re3+ {[%emt 0:00:12]} 0-1

[Event "7th Iberoamerican-ch 2019"]
[Site "Linares"]
[Date "2019.08.17"]
[Round "8.28"]
[White "Domingo Nunez, Ruben"]
[Black "Silva, Goncalo Nuno Neto Pi"]
[Result "1-0"]
[ECO "C55"]
[WhiteElo "2345"]
[BlackElo "2085"]
[Annotator "NA"]
[PlyCount "89"]
[EventDate "2019.08.10"]
[EventType "swiss"]
[EventCountry "ESP"]
[SourceTitle "playchess.com"]
[Source "ChessBase"]
[SourceQuality "1"]
[TimeControl "5400+30"]

1. e4 e5 {[%emt 0:02:26]} 2. Nf3 {[%emt 0:04:04]} Nc6 {[%emt 0:00:07]} 3. Bc4 {[%emt 0:00:18]} Nf6 {[%emt 0:00:06]} 4. d3 {[%emt 0:00:04]} h6 {[%emt 0:00:06]} 5. O-O {[%emt 0:01:09]} d6 {[%emt 0:00:08]} 6. c3 {[%emt 0:00:05]} g5 {[%emt 0:00:06]} 7. b4 {[%emt 0:00:02]} Bg7 {[%emt 0:00:28]} 8. Bb3 {[%emt 0:08:34]} O-O {[%emt 0:01:57]} 9. Nbd2 {[%emt 0:02:49]} a6 {[%emt 0:06:38]} 10. a4 {[%emt 0:12:14]} d5 {[%emt 0:10:17]} 11. Ba3 {[%emt 0:08:16]} b5 {[%emt 0:02:27]} 12. Bb2 {[%emt 0:10:59]} Be6 {[%emt 0:01:58]} 13. Qe2 {[%emt 0:16:58]} g4 {[%emt 0:04:47]} 14. Ne1 {[%emt 0:00:40]} Qd7 {[%emt 0:06:40]} 15. f4 {[%emt 0:07:53]} dxe4 {[%emt 0:06:34]} 16. fxe5 {[%emt 0:05:22]} Nxe5 {[%emt 0:02:48]} 17. d4 {[%emt 0:01:47]} Ng6 {[%emt 0:01:16]} 18. Nc2 {[%emt 0:02:33]} Nd5 {[%emt 0:04:07]} 19. Nxe4 {[%emt 0:04:40]} Ndf4 {[%emt 0:00:10]} 20. Qd2 {[%emt 0:00:01]} Bxb3 {[%emt 0:02:34]} 21. Nc5 {[%emt 0:00:03]} Qd5 {[%emt 0:00:29]} 22. Ne3 {[%emt 0:00:01]} Qg5 {[%emt 0:00:06]} 23. Nxb3 {[%emt 0:00:13]} Rfe8 {[%emt 0:02:21]} 24. Rae1 {[%emt 0:03:41]} bxa4 {[%emt 0:03:28]} 25. Nc5 {[%emt 0:00:01]} a5 {[%emt 0:00:25]} 26. b5 {[%emt 0:01:10]} Rad8 {[%emt 0:01:16]} 27. Ba3 {[%emt 0:03:26]} Nd5 {[%emt 0:00:44]} 28. Bc1 {[%emt 0:01:02]} Nxe3 {[%emt 0:03:49]} 29. Rxe3 {[%emt 0:00:03]} Qxe3+ {[%emt 0:00:12]} 30. Qxe3 {[%emt 0:00:04]} Rxe3 {[%emt 0:00:07]} 31. Bxe3 {[%emt 0:00:02]} Rb8 {[%emt 0:03:02]} 32. c4 {[%emt 0:06:58]} Rd8 {[%emt 0:01:26]} 33. Nb7 {[%emt 0:00:33]} Rxd4 {[%emt 0:00:24]} 34. Bxd4 {[%emt 0:00:04]} Bxd4+ {[%emt 0:00:03]} 35. Kh1 {[%emt 0:00:03]} a3 {[%emt 0:00:15]} 36. Nxa5 {[%emt 0:00:01]} Ne5 {[%emt 0:02:10]} 37. Nb3 {[%emt 0:00:07]} Bb2 {[%emt 0:00:26]} 38. c5 {[%emt 0:00:21]} Kf8 {[%emt 0:00:49]} 39. b6 {[%emt 0:02:21]} cxb6 {[%emt 0:00:11]} 40. cxb6 {[%emt 0:00:04]} Nd7 {[%emt 0:01:49]} 41. b7 {[%emt 0:00:17]} Ke7 {[%emt 0:00:23]} 42. Rd1 {[%emt 0:01:22]} Be5 {[%emt 0:00:40]} 43. Na5 {[%emt 0:00:24]} Kd8 {[%emt 0:02:01]} 44. Nc6+ {[%emt 0:00:17]} Kc7 {[%emt 0:00:02]} 45. b8=Q+ {[%emt 0:00:08]} 1-0

[Event "7th Iberoamerican-ch 2019"]
[Site "Linares"]
[Date "2019.08.17"]
[Round "8.30"]
[White "Balbuena Fuentes, Mario"]
[Black "Silva Rodriguez, Fernando"]
[Result "1/2-1/2"]
[ECO "A06"]
[WhiteElo "2268"]
[BlackElo "2253"]
[Annotator "NA"]
[PlyCount "97"]
[EventDate "2019.08.10"]
[EventType "swiss"]
[EventCountry "ESP"]
[SourceTitle "playchess.com"]
[Source "ChessBase"]
[SourceQuality "1"]
[TimeControl "5400+30"]

1. Nf3 {[%emt 0:01:59]} d5 {[%emt 0:00:00]} 2. b3 {[%emt 0:00:16]} Bg4 {[%emt 0:01:17]} 3. e3 {[%emt 0:00:23]} Nd7 {[%emt 0:00:58]} 4. Bb2 {[%emt 0:00:23]} c6 {[%emt 0:04:11]} 5. h3 {[%emt 0:01:20]} Bh5 {[%emt 0:00:13]} 6. d3 {[%emt 0:00:54]} Qc7 {[%emt 0:01:44]} 7. g4 {[%emt 0:01:44]} Bg6 {[%emt 0:00:13]} 8. Nh4 {[%emt 0:00:34]} e5 {[%emt 0:00:47]} 9. Nxg6 {[%emt 0:00:35]} hxg6 {[%emt 0:00:11]} 10. Bg2 {[%emt 0:00:42]} Bd6 {[%emt 0:03:30]} 11. c4 {[%emt 0:02:09]} Ne7 {[%emt 0:05:35]} 12. Nc3 {[%emt 0:10:24]} Qa5 {[%emt 0:10:07]} 13. a3 {[%emt 0:07:38]} dxc4 {[%emt 0:20:53]} 14. dxc4 {[%emt 0:06:12]} Bc7 {[%emt 0:01:06]} 15. b4 {[%emt 0:03:36]} Qa6 {[%emt 0:00:07]} 16. Ne4 {[%emt 0:17:04]} Rd8 {[%emt 0:08:03]} 17. Qb3 {[%emt 0:02:31]} b5 {[%emt 0:10:07]} 18. c5 {[%emt 0:01:41]} Nf6 {[%emt 0:00:40]} 19. Nd6+ {[%emt 0:02:34]} Bxd6 {[%emt 0:00:15]} 20. cxd6 {[%emt 0:00:05]} Rxd6 {[%emt 0:00:39]} 21. Bxe5 {[%emt 0:01:10]} Re6 {[%emt 0:00:11]} 22. Bd4 {[%emt 0:01:23]} O-O {[%emt 0:00:12]} 23. O-O {[%emt 0:00:45]} Nc8 {[%emt 0:03:02]} 24. Rfc1 {[%emt 0:03:19]} Rd8 {[%emt 0:00:38]} 25. Rc2 {[%emt 0:05:30]} Nd5 {[%emt 0:00:51]} 26. Rac1 {[%emt 0:00:37]} Nce7 {[%emt 0:02:39]} 27. Qb2 {[%emt 0:06:06]} Kh7 {[%emt 0:01:28]} 28. h4 {[%emt 0:03:14]} Nb6 {[%emt 0:01:43]} 29. Bxg7 {[%emt 0:03:18]} Nc4 {[%emt 0:00:18]} 30. Rxc4 {[%emt 0:00:06]} bxc4 {[%emt 0:00:07]} 31. Bd4 {[%emt 0:00:52]} Nd5 {[%emt 0:01:03]} 32. h5 {[%emt 0:01:54]} c3 {[%emt 0:05:13]} 33. hxg6+ {[%emt 0:01:33]} fxg6 {[%emt 0:04:40]} 34. Bxc3 {[%emt 0:03:50]} Nxc3 {[%emt 0:00:06]} 35. Qxc3 {[%emt 0:00:03]} Rd3 {[%emt 0:02:47]} 36. Qc5 {[%emt 0:00:50]} Rd2 {[%emt 0:08:12]} 37. Bxc6 {[%emt 0:02:47]} Qe2 {[%emt 0:00:12]} 38. Rf1 {[%emt 0:03:11]} Rd1 {[%emt 0:02:04]} 39. Rxd1 {[%emt 0:01:11]} Qxd1+ {[%emt 0:00:08]} 40. Kh2 {[%emt 0:00:16]} Qxg4 {[%emt 0:00:49]} 41. Bg2 {[%emt 0:01:52]} Qh4+ {[%emt 0:00:36]} 42. Kg1 {[%emt 0:00:45]} Re7 {[%emt 0:00:25]} 43. Qd6 {[%emt 0:02:40]} Rf7 {[%emt 0:01:12]} 44. Qd2 {[%emt 0:00:07]} Qg4 {[%emt 0:00:30]} 45. Qd4 {[%emt 0:01:25]} Qe2 {[%emt 0:01:21]} 46. Qh4+ {[%emt 0:00:10]} Kg7 {[%emt 0:00:03]} 47. Qd4+ {[%emt 0:00:43]} Kh7 {[%emt 0:00:06]} 48. Qh4+ {[%emt 0:00:04]} Kg7 {[%emt 0:00:04]} 49. Qd4+ {[%emt 0:01:16]} 1/2-1/2

[Event "7th Iberoamerican-ch 2019"]
[Site "Linares"]
[Date "2019.08.17"]
[Round "8.31"]
[White "Lopez Mulet, Inigo"]
[Black "Perera Borrego, Maria Adela"]
[Result "1/2-1/2"]
[ECO "E00"]
[WhiteElo "2397"]
[BlackElo "2186"]
[Annotator "NA"]
[PlyCount "31"]
[EventDate "2019.08.10"]
[EventType "swiss"]
[EventCountry "ESP"]
[SourceTitle "playchess.com"]
[Source "ChessBase"]
[SourceQuality "1"]
[TimeControl "5400+30"]

1. d4 {[%emt 0:03:49]} e6 {[%emt 0:00:00]} 2. c4 {[%emt 0:00:20]} Bb4+ {[%emt 0:00:00]} 3. Bd2 {[%emt 0:00:06]} a5 {[%emt 0:00:00]} 4. Nf3 {[%emt 0:00:27]} Nf6 {[%emt 0:00:31]} 5. a3 {[%emt 0:00:33]} Bxd2+ {[%emt 0:00:23]} 6. Qxd2 {[%emt 0:00:06]} b6 {[%emt 0:00:22]} 7. Nc3 {[%emt 0:00:48]} Bb7 {[%emt 0:00:11]} 8. Qf4 {[%emt 0:01:17]} h6 {[%emt 0:04:58]} 9. e4 {[%emt 0:01:42]} d6 {[%emt 0:05:52]} 10. Bd3 {[%emt 0:05:00]} Nc6 {[%emt 0:01:00]} 11. Qg3 {[%emt 0:06:00]} g5 {[%emt 0:06:02]} 12. d5 {[%emt 0:05:50]} Nh5 {[%emt 0:06:56]} 13. Qg4 {[%emt 0:30:26]} Nf6 {[%emt 0:02:11]} 14. Qg3 {[%emt 0:00:32]} Nh5 {[%emt 0:01:36]} 15. Qg4 {[%emt 0:01:53]} Nf6 {[%emt 0:00:15]} 16. Qg3 {[%emt 0:00:14]} 1/2-1/2

[Event "7th Iberoamerican-ch 2019"]
[Site "Linares"]
[Date "2019.08.17"]
[Round "8.32"]
[White "Ingunza Curro, Andres"]
[Black "Forgas Moreno, Yaniela"]
[Result "0-1"]
[ECO "B92"]
[WhiteElo "2103"]
[BlackElo "2276"]
[Annotator "NA"]
[PlyCount "178"]
[EventDate "2019.08.10"]
[EventType "swiss"]
[EventCountry "ESP"]
[SourceTitle "playchess.com"]
[Source "ChessBase"]
[SourceQuality "1"]
[TimeControl "5400+30"]

1. e4 {[%emt 0:00:00]} c5 {[%emt 0:00:00]} 2. Nf3 {[%emt 0:00:02]} d6 {[%emt 0:00:00]} 3. Nc3 {[%emt 0:00:49]} Nf6 {[%emt 0:00:27]} 4. d4 {[%emt 0:00:21]} cxd4 {[%emt 0:00:07]} 5. Nxd4 {[%emt 0:00:21]} a6 {[%emt 0:00:13]} 6. Be2 {[%emt 0:00:25]} e5 {[%emt 0:00:45]} 7. Nb3 {[%emt 0:00:05]} Be7 {[%emt 0:00:03]} 8. Bg5 {[%emt 0:00:05]} Be6 {[%emt 0:01:25]} 9. Bxf6 {[%emt 0:00:30]} Bxf6 {[%emt 0:00:06]} 10. Qd3 {[%emt 0:00:03]} Nc6 {[%emt 0:01:52]} 11. O-O-O {[%emt 0:01:15]} Nd4 {[%emt 0:03:57]} 12. Nxd4 {[%emt 0:00:30]} exd4 {[%emt 0:00:11]} 13. Nd5 {[%emt 0:00:05]} Bxd5 {[%emt 0:01:07]} 14. exd5 {[%emt 0:00:15]} O-O {[%emt 0:00:14]} 15. Kb1 {[%emt 0:01:38]} Qa5 {[%emt 0:00:32]} 16. Bf3 {[%emt 0:02:43]} Rac8 {[%emt 0:04:34]} 17. Be4 {[%emt 0:01:01]} h6 {[%emt 0:08:08]} 18. h4 {[%emt 0:10:36]} Qb4 {[%emt 0:04:35]} 19. Ka1 {[%emt 0:06:11]} Rfe8 {[%emt 0:02:28]} 20. f3 {[%emt 0:11:33]} b5 {[%emt 0:07:17]} 21. g4 {[%emt 0:07:21]} Qc4 {[%emt 0:01:55]} 22. Qd2 {[%emt 0:04:24]} d3 {[%emt 0:05:03]} 23. Bxd3 {[%emt 0:01:07]} Qd4 {[%emt 0:00:07]} 24. c3 {[%emt 0:01:58]} Qe3 {[%emt 0:03:01]} 25. Bf5 {[%emt 0:15:56]} Qxd2 {[%emt 0:04:23]} 26. Rxd2 {[%emt 0:00:04]} Rc7 {[%emt 0:00:13]} 27. Be4 {[%emt 0:03:54]} a5 {[%emt 0:01:17]} 28. Kb1 {[%emt 0:05:49]} Rb8 {[%emt 0:01:35]} 29. Rg2 {[%emt 0:06:21]} g6 {[%emt 0:01:42]} 30. h5 {[%emt 0:00:38]} g5 {[%emt 0:01:07]} 31. Rc2 {[%emt 0:01:29]} Rcb7 {[%emt 0:01:21]} 32. Re1 {[%emt 0:02:04]} b4 {[%emt 0:00:22]} 33. cxb4 {[%emt 0:00:42]} Rxb4 {[%emt 0:00:05]} 34. Ree2 {[%emt 0:00:51]} a4 {[%emt 0:00:48]} 35. a3 {[%emt 0:03:23]} Rb3 {[%emt 0:00:42]} 36. Ka2 {[%emt 0:00:14]} Kg7 {[%emt 0:00:26]} 37. Rf2 {[%emt 0:01:15]} Be5 {[%emt 0:00:45]} 38. Rfe2 {[%emt 0:04:35]} Kf6 {[%emt 0:00:17]} 39. Red2 {[%emt 0:00:42]} R8b7 {[%emt 0:01:49]} 40. Rf2 {[%emt 0:01:21]} R7b5 {[%emt 0:01:48]} 41. Rfd2 {[%emt 0:01:22]} Ke7 {[%emt 0:01:34]} 42. Rc7+ {[%emt 0:00:29]} Kd8 {[%emt 0:00:12]} 43. Rcc2 {[%emt 0:00:18]} Rb7 {[%emt 0:01:03]} 44. Rf2 {[%emt 0:01:23]} Kd7 {[%emt 0:02:12]} 45. Rfd2 {[%emt 0:01:58]} Ke7 {[%emt 0:00:16]} 46. Rf2 {[%emt 0:00:28]} Bg7 {[%emt 0:00:27]} 47. Rfe2 {[%emt 0:01:04]} Be5 {[%emt 0:01:09]} 48. Rf2 {[%emt 0:00:27]} R3b6 {[%emt 0:00:18]} 49. Rfd2 {[%emt 0:01:03]} Kf6 {[%emt 0:00:29]} 50. Bf5 {[%emt 0:00:30]} Rb3 {[%emt 0:01:20]} 51. Be4 {[%emt 0:00:52]} Rb8 {[%emt 0:00:11]} 52. Rf2 {[%emt 0:00:37]} Bd4 {[%emt 0:00:22]} 53. Rfe2 {[%emt 0:00:22]} R3b5 {[%emt 0:03:01]} 54. Rcd2 {[%emt 0:00:21]} Be5 {[%emt 0:00:48]} 55. Rf2 {[%emt 0:00:15]} Rc8 {[%emt 0:00:35]} 56. Rc2 {[%emt 0:00:47]} Rcb8 {[%emt 0:00:30]} 57. Rcd2 {[%emt 0:00:11]} Rc5 {[%emt 0:00:33]} 58. Rc2 {[%emt 0:00:33]} Bd4 {[%emt 0:01:08]} 59. Rfd2 {[%emt 0:00:56]} Ke5 {[%emt 0:01:59]} 60. Re2 {[%emt 0:01:46]} Kf4 {[%emt 0:01:17]} 61. Rcd2 {[%emt 0:01:03]} Be5 {[%emt 0:02:34]} 62. Rf2 {[%emt 0:00:53]} Rb3 {[%emt 0:01:28]} 63. Rf1 {[%emt 0:00:38]} Ke3 {[%emt 0:01:10]} 64. Rff2 {[%emt 0:00:17]} Rc1 {[%emt 0:00:24]} 65. Rde2+ {[%emt 0:00:23]} Kf4 {[%emt 0:00:36]} 66. Rd2 {[%emt 0:00:17]} Rc5 {[%emt 0:06:23]} 67. Kb1 {[%emt 0:00:31]} Rcb5 {[%emt 0:01:05]} 68. Kc1 {[%emt 0:00:18]} Rc5+ {[%emt 0:01:25]} 69. Kd1 {[%emt 0:00:42]} Rc4 {[%emt 0:00:19]} 70. Rg2 {[%emt 0:00:57]} Rb8 {[%emt 0:00:29]} 71. Rge2 {[%emt 0:00:31]} Rd4 {[%emt 0:01:57]} 72. Rxd4 {[%emt 0:00:32]} Bxd4 {[%emt 0:00:06]} 73. Kc1 {[%emt 0:00:17]} f6 {[%emt 0:00:09]} 74. Rc2 {[%emt 0:00:19]} Ke3 {[%emt 0:00:28]} 75. Rc4 {[%emt 0:00:29]} Bxb2+ {[%emt 0:00:18]} 76. Kc2 {[%emt 0:00:01]} Bd4 {[%emt 0:01:01]} 77. Rxa4 {[%emt 0:00:29]} Rb2+ {[%emt 0:00:23]} 78. Kd1 {[%emt 0:00:26]} Ra2 {[%emt 0:00:40]} 79. Ra6 {[%emt 0:00:31]} Bc5 {[%emt 0:00:42]} 80. a4 Ba3 {[%emt 0:00:55]} 81. Ra8 {[%emt 0:01:09]} Rd2+ {[%emt 0:00:19]} 82. Ke1 {[%emt 0:00:00]} Bb4 {[%emt 0:00:24]} 83. Kf1 {[%emt 0:00:27]} Ra2 {[%emt 0:00:50]} 84. Rh8 {[%emt 0:00:26]} Kf4 {[%emt 0:01:29]} 85. Rxh6 {[%emt 0:01:36]} Kg3 {[%emt 0:00:26]} 86. f4 {[%emt 0:00:22]} Rf2+ {[%emt 0:00:10]} 87. Kg1 {[%emt 0:00:01]} Bc5 {[%emt 0:00:07]} 88. Bd3 {[%emt 0:00:10]} Rf3+ {[%emt 0:00:24]} 89. Kh1 {[%emt 0:00:00]} Rxd3 {[%emt 0:00:06]} 0-1

[Event "7th Iberoamerican-ch 2019"]
[Site "Linares"]
[Date "2019.08.17"]
[Round "8.34"]
[White "Luque Saiz, Andres"]
[Black "Rodriguez Perez, Angel Mariano"]
[Result "1/2-1/2"]
[ECO "B45"]
[WhiteElo "2106"]
[BlackElo "2223"]
[Annotator "NA"]
[PlyCount "117"]
[EventDate "2019.08.10"]
[EventType "swiss"]
[EventCountry "ESP"]
[SourceTitle "playchess.com"]
[Source "ChessBase"]
[SourceQuality "1"]
[TimeControl "5400+30"]

1. e4 {[%emt 0:00:00]} c5 {[%emt 0:00:00]} 2. Nf3 {[%emt 0:00:00]} e6 {[%emt 0:00:00]} 3. Nc3 {[%emt 0:00:00]} Nc6 {[%emt 0:00:00]} 4. d4 {[%emt 0:00:31]} cxd4 {[%emt 0:00:00]} 5. Nxd4 {[%emt 0:00:08]} Nf6 {[%emt 0:00:00]} 6. g3 {[%emt 0:01:03]} d5 {[%emt 0:00:07]} 7. exd5 {[%emt 0:05:44]} Nxd5 {[%emt 0:00:17]} 8. Nde2 {[%emt 0:03:41]} Bb4 {[%emt 0:04:37]} 9. Bg2 {[%emt 0:01:25]} Nxc3 {[%emt 0:01:12]} 10. Qxd8+ {[%emt 0:01:32]} Nxd8 {[%emt 0:00:17]} 11. Nxc3 {[%emt 0:00:03]} Bxc3+ {[%emt 0:00:22]} 12. bxc3 {[%emt 0:00:07]} Bd7 {[%emt 0:03:08]} 13. Ba3 {[%emt 0:08:52]} Rc8 {[%emt 0:02:50]} 14. O-O-O {[%emt 0:03:07]} Bc6 {[%emt 0:01:36]} 15. f3 {[%emt 0:03:14]} h5 {[%emt 0:04:34]} 16. Rd3 {[%emt 0:05:05]} h4 {[%emt 0:04:03]} 17. g4 {[%emt 0:00:05]} h3 {[%emt 0:03:06]} 18. Bf1 {[%emt 0:00:05]} e5 {[%emt 0:00:49]} 19. Re3 {[%emt 0:03:22]} f6 {[%emt 0:02:42]} 20. Bd3 {[%emt 0:00:14]} Bd5 {[%emt 0:15:28]} 21. Kb1 {[%emt 0:12:11]} Kf7 {[%emt 0:09:06]} 22. Rd1 {[%emt 0:06:39]} Ne6 {[%emt 0:03:55]} 23. Bf5 {[%emt 0:00:50]} Bc6 {[%emt 0:01:33]} 24. f4 {[%emt 0:11:41]} g6 {[%emt 0:05:01]} 25. Bxe6+ {[%emt 0:00:44]} Kxe6 {[%emt 0:00:16]} 26. fxe5 {[%emt 0:00:40]} fxe5 {[%emt 0:00:37]} 27. Rd6+ {[%emt 0:05:01]} Kf7 {[%emt 0:00:11]} 28. Rxe5 {[%emt 0:00:16]} Rce8 {[%emt 0:00:40]} 29. Rxe8 {[%emt 0:08:09]} Rxe8 {[%emt 0:00:08]} 30. Rd3 {[%emt 0:00:11]} Re1+ {[%emt 0:00:50]} 31. Kb2 {[%emt 0:00:11]} Bg2 {[%emt 0:00:43]} 32. c4 {[%emt 0:02:49]} Kf6 {[%emt 0:02:00]} 33. Kc3 {[%emt 0:01:22]} Kg5 {[%emt 0:00:52]} 34. Bd6 {[%emt 0:01:11]} Kxg4 {[%emt 0:00:37]} 35. Rd4+ {[%emt 0:00:42]} Kf5 {[%emt 0:02:26]} 36. Bg3 {[%emt 0:01:34]} Rf1 {[%emt 0:01:19]} 37. Rd7 {[%emt 0:00:46]} Ke6 {[%emt 0:01:02]} 38. Rd6+ {[%emt 0:00:06]} Kf5 {[%emt 0:00:28]} 39. Rd7 {[%emt 0:00:03]} Kg5 {[%emt 0:01:15]} 40. Rd4 {[%emt 0:00:39]} Bc6 {[%emt 0:01:46]} 41. Rd3 {[%emt 0:02:04]} Be4 {[%emt 0:00:27]} 42. Re3 {[%emt 0:00:28]} Kf5 {[%emt 0:01:00]} 43. Bb8 {[%emt 0:00:54]} Rf2 {[%emt 0:05:09]} 44. Rxh3 {[%emt 0:00:11]} Rxc2+ {[%emt 0:00:34]} 45. Kb3 {[%emt 0:00:09]} a6 {[%emt 0:01:39]} 46. Rc3 {[%emt 0:01:09]} Re2 {[%emt 0:00:47]} 47. a3 {[%emt 0:00:24]} Bc6 {[%emt 0:00:25]} 48. Rd3 {[%emt 0:01:47]} g5 {[%emt 0:00:16]} 49. Kc3 {[%emt 0:00:22]} g4 {[%emt 0:01:12]} 50. Rd2 {[%emt 0:00:43]} Re1 {[%emt 0:01:14]} 51. Rf2+ {[%emt 0:01:04]} Bf3 {[%emt 0:00:18]} 52. Bg3 {[%emt 0:00:18]} Rc1+ {[%emt 0:00:48]} 53. Rc2 {[%emt 0:00:19]} Rb1 {[%emt 0:00:39]} 54. Rb2 {[%emt 0:00:29]} Ra1 {[%emt 0:00:21]} 55. Kb4 {[%emt 0:00:49]} Ke4 {[%emt 0:01:08]} 56. Rb3 {[%emt 0:01:11]} Kd4 {[%emt 0:02:36]} 57. Bf2+ {[%emt 0:00:05]} Ke4 {[%emt 0:00:11]} 58. Bg3 {[%emt 0:00:02]} Kd4 {[%emt 0:01:11]} 59. Bf2+ {[%emt 0:00:06]} 1/2-1/2